[Event "IIe Tournoi de GMI du C'Chartres Echecs"]
[Site "Chartres, France"]
[Date "2021.05.17"]
[Round "1.1"]
[White "Vlachos, Anatole"]
[Black "Shirazi, Kamran"]
[Result "1-0"]
[TimeControl "5400+30"]
[WhiteTitle "IM"]
[BlackTitle "IM"]
[WhiteElo "2438"]
[BlackElo "2349"]

1. e4 {[%clk 01:30:56]} {[%emt 00:00:03]} c6 {[%clk 01:28:14]} {[%emt
00:02:46]} 2. Nc3 {[%clk 01:29:50]} {[%emt 00:01:06]} d5 {[%clk 01:28:29]}
{[%emt 00:00:12]} 3. Nf3 {[%clk 01:30:26]} {[%emt 00:00:27]} g6 {[%clk
01:27:00]} {[%emt 00:01:59]} 4. d4 {[%clk 01:28:35]} {[%emt 00:02:21]} Bg7
{[%clk 01:26:29]} {[%emt 00:01:02]} 5. e5 {[%clk 01:26:09]} {[%emt 00:02:56]}
f6 {[%clk 01:24:36]} {[%emt 00:02:23]} 6. Bd3 {[%clk 01:21:44]} {[%emt
00:04:53]} Bg4 {[%clk 01:21:56]} {[%emt 00:03:11]} 7. exf6 {[%clk 01:17:59]}
{[%emt 00:04:15]} Nxf6 {[%clk 01:20:24]} {[%emt 00:02:01]} 8. h3 {[%clk
01:17:25]} {[%emt 00:01:03]} Bxf3 {[%clk 01:19:39]} {[%emt 00:01:17]} 9. Qxf3
{[%clk 01:17:52]} {[%emt 00:00:03]} O-O {[%clk 01:19:53]} {[%emt 00:00:16]} 10.
Qe2 {[%clk 01:06:41]} {[%emt 00:11:41]} Nh5 {[%clk 01:19:35]} {[%emt 00:00:48]}
11. Qe6+ {[%clk 01:06:42]} {[%emt 00:00:29]} Kh8 {[%clk 01:19:59]} {[%emt
00:00:06]} 12. Ne2 {[%clk 01:06:25]} {[%emt 00:00:46]} c5 {[%clk 01:08:59]}
{[%emt 00:11:30]} 13. dxc5 {[%clk 01:00:14]} {[%emt 00:06:40]} Nc6 {[%clk
01:09:04]} {[%emt 00:00:26]} 14. g4 {[%clk 00:51:18]} {[%emt 00:09:26]} Nf6
{[%clk 01:00:15]} {[%emt 00:09:19]} 15. Bd2 {[%clk 00:45:23]} {[%emt 00:06:23]}
Ne8 {[%clk 00:55:22]} {[%emt 00:05:25]} 16. Nf4 {[%clk 00:29:57]} {[%emt
00:15:56]} Ne5 {[%clk 00:42:38]} {[%emt 00:13:14]} 17. Qxd5 {[%clk 00:24:33]}
{[%emt 00:05:54]} Qxd5 {[%clk 00:42:23]} {[%emt 00:00:45]} 18. Nxd5 {[%clk
00:25:01]} {[%emt 00:00:02]} Nf3+ {[%clk 00:42:39]} {[%emt 00:00:15]} 19. Ke2
{[%clk 00:24:23]} {[%emt 00:01:08]} Nxd2 {[%clk 00:42:24]} {[%emt 00:00:45]} 20.
Kxd2 {[%clk 00:24:46]} {[%emt 00:00:07]} Rd8 {[%clk 00:31:36]} {[%emt
00:11:18]} 21. Nc3 {[%clk 00:25:07]} {[%emt 00:00:09]} Rxf2+ {[%clk 00:31:49]}
{[%emt 00:00:17]} 22. Ke1 {[%clk 00:25:09]} {[%emt 00:00:28]} Rf4 {[%clk
00:28:11]} {[%emt 00:04:09]} 23. Ke2 {[%clk 00:25:06]} {[%emt 00:00:33]} Nc7
{[%clk 00:21:20]} {[%emt 00:07:21]} 24. Rhf1 {[%clk 00:20:15]} {[%emt
00:05:20]} Ne6 {[%emt 00:02:36]} 25. Ne4 {[%clk 00:20:08]} {[%emt 00:00:36]}
Rd5 {[%clk 00:12:54]} {[%emt 00:06:51]} 26. Rxf4 {[%clk 00:09:13]} {[%emt
00:11:26]} Nxf4+ {[%clk 00:13:21]} {[%emt 00:00:03]} 27. Kd2 {[%clk 00:07:39]}
{[%emt 00:01:59]} Ne6 {[%clk 00:07:47]} {[%emt 00:06:09]} 28. Re1 {[%clk
00:07:09]} {[%emt 00:00:58]} Bxb2 {[%clk 00:07:16]} {[%emt 00:01:02]} 29. Rb1
{[%clk 00:07:13]} {[%emt 00:00:27]} Ba3 {[%clk 00:07:33]} {[%emt 00:00:14]} 30.
Rxb7 {[%clk 00:06:31]} {[%emt 00:01:11]} Nxc5 {[%clk 00:07:58]} {[%emt
00:00:05]} 31. Nxc5 {[%clk 00:03:01]} {[%emt 00:03:59]} Bxc5 {[%clk 00:08:23]}
{[%emt 00:00:06]} 32. h4 {[%clk 00:02:27]} {[%emt 00:01:05]} Rd4 {[%clk
00:07:34]} {[%emt 00:01:19]} 33. Rc7 {[%clk 00:01:57]} {[%emt 00:00:58]} Bd6
{[%clk 00:08:00]} {[%emt 00:00:05]} 34. Rc4 {[%clk 00:00:56]} {[%emt 00:01:31]}
Rd5 {[%clk 00:08:10]} {[%emt 00:00:20]} 35. Ke3 {[%clk 00:00:49]} {[%emt
00:00:34]} Kg7 {[%clk 00:08:15]} {[%emt 00:00:28]} 36. g5 {[%clk 00:00:41]}
{[%emt 00:00:37]} Rb5 {[%clk 00:07:52]} {[%emt 00:00:54]} 37. Rc8 {[%clk
00:00:32]} {[%emt 00:00:39]} Re5+ {[%clk 00:07:37]} {[%emt 00:00:45]} 38. Kf3
{[%clk 00:00:56]} {[%emt 00:00:06]} Bc5 {[%clk 00:07:07]} {[%emt 00:01:02]} 39.
Bc4 {[%clk 00:00:47]} {[%emt 00:00:39]} h6 {[%clk 00:06:10]} {[%emt 00:01:26]}
40. gxh6+ {[%clk 00:00:57]} {[%emt 00:00:20]} Kxh6 {[%clk 00:06:38]} {[%emt
00:00:02]} 41. Bd3 {[%clk 00:01:20]} {[%emt 00:00:08]} Kg7 {[%clk 00:06:32]}
{[%emt 00:00:36]} 42. Rc6 {[%clk 00:01:38]} {[%emt 00:00:09]} e6 {[%clk
00:04:57]} {[%emt 00:02:08]} 43. Bc4 {[%clk 00:00:47]} {[%emt 00:01:20]} Rf5+
{[%clk 00:04:16]} {[%emt 00:01:11]} 44. Kg4 {[%clk 00:00:59]} {[%emt 00:00:17]}
Be3 {[%clk 00:02:40]} {[%emt 00:02:09]} 45. Bxe6 {[%clk 00:01:00]} {[%emt
00:00:28]} Rf4+ {[%clk 00:02:48]} {[%emt 00:00:22]} 46. Kg3 {[%clk 00:01:20]}
{[%emt 00:00:06]} Rd4 {[%clk 00:01:48]} {[%emt 00:01:35]} 47. Bc4 {[%clk
00:01:16]} {[%emt 00:00:33]} Bf4+ {[%clk 00:02:15]} {[%emt 00:00:04]} 48. Kh3
{[%clk 00:01:31]} {[%emt 00:00:12]} Be5 {[%clk 00:02:41]} {[%emt 00:00:07]} 49.
Bd3 {[%clk 00:01:31]} {[%emt 00:00:30]} Bf6 {[%clk 00:03:08]} {[%emt 00:00:03]}
50. Rc7+ {[%clk 00:01:49]} {[%emt 00:00:11]} Kh6 {[%clk 00:03:31]} {[%emt
00:00:07]} 51. Rxa7 {[%clk 00:02:14]} {[%emt 00:00:05]} Rxh4+ {[%clk 00:03:26]}
{[%emt 00:00:35]} 52. Kg3 {[%clk 00:02:43]} {[%emt 00:00:01]} Rb4 {[%clk
00:03:01]} {[%emt 00:00:55]} 53. a4 {[%clk 00:03:03]} {[%emt 00:00:10]} Be5+
{[%clk 00:02:53]} {[%emt 00:00:38]} 54. Kh3 {[%clk 00:03:24]} {[%emt 00:00:07]}
Kg5 {[%clk 00:02:43]} {[%emt 00:00:41]} 55. Ra6 {[%clk 00:01:31]} {[%emt
00:02:23]} Rh4+ {[%clk 00:02:26]} {[%emt 00:00:48]} 56. Kg2 {[%clk 00:02:00]}
Rh2+ {[%clk 00:01:46]} {[%emt 00:01:10]} 57. Kf3 {[%clk 00:01:44]} {[%emt
00:00:45]} Bf6 {[%clk 00:01:11]} {[%emt 00:01:06]} 58. a5 {[%clk 00:02:02]}
{[%emt 00:00:12]} Rh4 {[%clk 00:01:36]} {[%emt 00:00:04]} 59. Rc6 {[%clk
00:01:58]} {[%emt 00:00:35]} Rf4+ {[%clk 00:01:58]} {[%emt 00:00:08]} 60. Ke2
{[%clk 00:02:08]} {[%emt 00:00:16]} Ra4 {[%clk 00:01:37]} {[%emt 00:00:56]} 61.
a6 {[%clk 00:02:36]} {[%emt 00:00:02]} Bd4 {[%clk 00:01:27]} {[%emt 00:00:40]}
62. Rxg6+ {[%clk 00:02:58]} {[%emt 00:00:07]} Kf4 {[%clk 00:01:51]} {[%emt
00:00:06]} 63. Re6 {[%clk 00:02:56]} {[%emt 00:00:30]} Bc5 {[%clk 00:02:13]}
{[%emt 00:00:10]} 64. Kd2 {[%clk 00:02:06]} {[%emt 00:01:18]} Bb4+ {[%clk
00:02:29]} {[%emt 00:00:15]} 65. c3 {[%clk 00:01:50]} {[%emt 00:00:46]} Ra2+
{[%clk 00:02:03]} {[%emt 00:00:57]} 66. Bc2 {[%clk 00:02:19]} {[%emt 00:00:01]}
Bc5 {[%clk 00:02:11]} {[%emt 00:00:22]} 67. Kc1 {[%clk 00:02:00]} {[%emt
00:00:48]} Ba3+ {[%clk 00:02:19]} {[%emt 00:00:23]} 68. Kb1 {[%clk 00:01:34]}
{[%emt 00:00:54]} Rb2+ {[%clk 00:02:39]} {[%emt 00:00:12]} 69. Ka1 {[%clk
00:02:03]} {[%emt 00:00:02]} Rb5 {[%clk 00:02:44]} {[%emt 00:00:25]} 70. Re4+
{[%clk 00:01:43]} {[%emt 00:00:49]} Kf3 {[%clk 00:00:57]} {[%emt 00:02:18]} 71.
a7 {[%clk 00:02:08]} {[%emt 00:00:06]} Bb2+ {[%clk 00:01:17]} {[%emt 00:00:09]}
72. Ka2 {[%clk 00:02:23]} {[%emt 00:00:13]} Ra5+ {[%clk 00:01:42]} {[%emt
00:00:06]} 73. Ra4 {[%clk 00:02:48]} {[%emt 00:00:05]} Rxa7 {[%clk 00:02:05]}
{[%emt 00:00:08]} 74. Rxa7 {[%clk 00:03:17]} {[%emt 00:00:02]} Bxc3 {[%clk
00:02:27]} {[%emt 00:00:07]} 75. Ra3 {[%clk 00:03:45]} {[%emt 00:00:02]} 1-0

[Event "IIe Tournoi de GMI du C'Chartres Echecs"]
[Site "Chartres, France"]
[Date "2021.05.17"]
[Round "1.2"]
[White "Duboue, Peio"]
[Black "Flear, Glenn"]
[Result "1/2-1/2"]
[TimeControl "5400+30"]
[WhiteTitle "FM"]
[BlackTitle "GM"]
[WhiteElo "2431"]
[BlackElo "2431"]

1. e4 {[%clk 01:30:56]} {[%emt 00:00:03]} e5 {[%clk 01:30:51]} {[%emt
00:00:10]} 2. Nf3 {[%clk 01:31:21]} {[%emt 00:00:05]} Nc6 {[%clk 01:31:13]}
{[%emt 00:00:08]} 3. Bb5 {[%clk 01:31:48]} {[%emt 00:00:03]} a6 {[%clk
01:31:04]} {[%emt 00:00:39]} 4. Bxc6 {[%clk 01:32:13]} {[%emt 00:00:05]} dxc6
{[%clk 01:31:27]} {[%emt 00:00:08]} 5. O-O {[%clk 01:32:37]} {[%emt 00:00:06]}
Bd6 {[%clk 01:30:29]} {[%emt 00:01:27]} 6. d4 {[%clk 01:33:00]} {[%emt
00:00:07]} exd4 {[%clk 01:30:54]} {[%emt 00:00:05]} 7. Qxd4 {[%clk 01:33:25]}
{[%emt 00:00:05]} f6 {[%clk 01:31:14]} {[%emt 00:00:10]} 8. Nbd2 {[%clk
01:33:46]} {[%emt 00:00:09]} Be6 {[%clk 01:31:06]} {[%emt 00:00:37]} 9. b3
{[%clk 01:34:09]} {[%emt 00:00:07]} Nh6 {[%clk 01:29:06]} {[%emt 00:02:30]} 10.
Nc4 {[%clk 01:33:58]} {[%emt 00:00:42]} Nf7 {[%clk 01:29:16]} {[%emt 00:00:18]}
11. Nxd6+ {[%clk 01:34:19]} {[%emt 00:00:10]} cxd6 {[%clk 01:23:50]} {[%emt
00:05:56]} 12. Bf4 {[%clk 01:34:22]} {[%emt 00:00:27]} Qc7 {[%clk 01:22:43]}
{[%emt 00:01:36]} 13. Qe3 {[%clk 01:25:31]} {[%emt 00:09:22]} O-O {[%emt
00:05:31]} 14. Nd4 {[%clk 01:24:40]} {[%emt 00:01:19]} Rfe8 {[%clk 01:14:15]}
{[%emt 00:03:58]} 15. Rfe1 {[%clk 01:21:14]} {[%emt 00:03:57]} Rad8 {[%clk
01:08:38]} {[%emt 00:06:08]} 16. Nxe6 {[%clk 01:20:54]} {[%emt 00:00:49]} Rxe6
{[%clk 01:08:59]} {[%emt 00:00:08]} 17. Qd2 {[%clk 00:52:48]} {[%emt 00:28:37]}
Qe7 {[%clk 01:00:10]} {[%emt 00:09:20]} 18. f3 {[%clk 00:49:19]} {[%emt
00:04:00]} d5 {[%clk 00:57:01]} {[%emt 00:03:39]} 19. exd5 {[%clk 00:49:42]}
{[%emt 00:00:07]} Rxd5 {[%clk 00:57:22]} {[%emt 00:00:08]} 20. Rxe6 {[%clk
00:49:30]} {[%emt 00:00:42]} Qxe6 {[%clk 00:57:41]} {[%emt 00:00:10]} 21. Re1
{[%clk 00:46:38]} {[%emt 00:03:23]} Rxd2 {[%clk 00:52:21]} {[%emt 00:05:50]} 22.
Rxe6 {[%clk 00:47:00]} {[%emt 00:00:07]} Rd1+ {[%clk 00:52:00]} {[%emt
00:00:52]} 23. Kf2 {[%clk 00:47:27]} {[%emt 00:00:04]} Kf8 {[%clk 00:52:17]}
{[%emt 00:00:12]} 24. Be3 {[%clk 00:43:34]} {[%emt 00:04:23]} Rd5 {[%clk
00:49:24]} {[%emt 00:03:22]} 25. Bc1 {[%clk 00:35:54]} {[%emt 00:08:10]} Re5
{[%clk 00:45:32]} {[%emt 00:04:22]} 26. Ba3+ {[%clk 00:36:15]} {[%emt
00:00:10]} Kg8 {[%clk 00:45:55]} {[%emt 00:00:07]} 27. Rxe5 {[%clk 00:36:39]}
{[%emt 00:00:06]} Nxe5 {[%clk 00:46:19]} {[%emt 00:00:06]} 28. Ke3 {[%clk
00:36:48]} {[%emt 00:00:22]} Kf7 {[%clk 00:46:25]} {[%emt 00:00:23]} 29. Kd4
{[%clk 00:33:30]} {[%emt 00:03:48]} Nd7 {[%clk 00:44:05]} {[%emt 00:02:50]} 30.
Bd6 {[%clk 00:25:59]} {[%emt 00:08:01]} Ke6 {[%clk 00:43:08]} {[%emt 00:01:26]}
31. Bc7 {[%clk 00:26:25]} {[%emt 00:00:05]} h5 {[%clk 00:41:36]} {[%emt
00:02:02]} 32. a4 {[%clk 00:25:41]} {[%emt 00:01:15]} g6 {[%clk 00:40:58]}
{[%emt 00:01:06]} 33. c4 {[%clk 00:21:12]} {[%emt 00:05:00]} f5 {[%clk
00:37:15]} {[%emt 00:04:12]} 34. b4 {[%clk 00:18:34]} {[%emt 00:03:09]} Nf8
{[%clk 00:36:58]} {[%emt 00:00:47]} 35. b5 {[%clk 00:13:21]} {[%emt 00:05:43]}
axb5 {[%clk 00:36:38]} {[%emt 00:00:50]} 36. cxb5 {[%clk 00:13:26]} {[%emt
00:00:26]} cxb5 {[%clk 00:36:52]} {[%emt 00:00:16]} 37. axb5 {[%clk 00:13:52]}
{[%emt 00:00:04]} Nd7 {[%clk 00:36:40]} {[%emt 00:00:41]} 38. Ba5 {[%clk
00:09:12]} {[%emt 00:05:09]} Nf8 {[%clk 00:35:57]} {[%emt 00:01:13]} 39. Bc7
{[%clk 00:09:35]} {[%emt 00:00:07]} 1/2-1/2

[Event "IIe Tournoi de GMI du C'Chartres Echecs"]
[Site "Chartres, France"]
[Date "2021.05.17"]
[Round "1.3"]
[White "Maurizzi, Marc Andria"]
[Black "Dgebuadze, Alexandre"]
[Result "1/2-1/2"]
[TimeControl "5400+30"]
[WhiteTitle "IM"]
[BlackTitle "GM"]
[WhiteElo "2489"]
[BlackElo "2490"]

1. e4 {[%clk 01:30:49]} {[%emt 00:00:10]} e6 {[%clk 01:29:38]} {[%emt
00:01:22]} 2. d4 {[%clk 01:30:42]} {[%emt 00:00:37]} d5 {[%clk 01:30:02]}
{[%emt 00:00:06]} 3. e5 {[%clk 01:31:11]} {[%emt 00:00:02]} c5 {[%clk
01:29:25]} {[%emt 00:01:06]} 4. c3 {[%clk 01:31:23]} {[%emt 00:00:19]} Qb6
{[%clk 01:29:24]} {[%emt 00:00:31]} 5. Nf3 {[%clk 01:30:30]} {[%emt 00:01:23]}
Bd7 {[%clk 01:28:31]} {[%emt 00:01:23]} 6. Be2 {[%clk 01:29:07]} {[%emt
00:01:53]} cxd4 {[%clk 01:24:38]} {[%emt 00:04:23]} 7. cxd4 {[%clk 01:28:52]}
{[%emt 00:00:45]} Nh6 {[%clk 01:24:45]} {[%emt 00:00:22]} 8. Bxh6 {[%clk
01:11:44]} {[%emt 00:17:38]} gxh6 {[%clk 01:19:06]} {[%emt 00:06:09]} 9. O-O
{[%clk 01:07:56]} {[%emt 00:04:18]} Bg7 {[%clk 01:05:20]} {[%emt 00:14:15]} 10.
Nc3 {[%clk 00:46:23]} {[%emt 00:22:03]} O-O {[%clk 01:04:54]} {[%emt 00:00:56]}
11. Qd2 {[%clk 00:43:56]} {[%emt 00:02:58]} Nc6 {[%clk 01:03:42]} {[%emt
00:01:41]} 12. Na4 {[%clk 00:41:59]} {[%emt 00:02:27]} Qa5 {[%clk 00:54:51]}
{[%emt 00:09:20]} 13. Qxa5 {[%clk 00:38:03]} {[%emt 00:04:27]} Nxa5 {[%clk
00:55:01]} {[%emt 00:00:20]} 14. Nc5 {[%clk 00:38:31]} {[%emt 00:00:02]} Bc6
{[%clk 00:55:02]} {[%emt 00:00:28]} 15. Rfc1 {[%clk 00:34:42]} {[%emt
00:04:19]} Rfc8 {[%clk 00:53:57]} {[%emt 00:01:35]} 16. Rc3 {[%clk 00:19:39]}
{[%emt 00:15:33]} b6 {[%clk 00:40:00]} {[%emt 00:14:27]} 17. Nb3 {[%clk
00:19:13]} {[%emt 00:00:56]} Nxb3 {[%clk 00:31:48]} {[%emt 00:08:42]} 18. axb3
{[%clk 00:19:36]} {[%emt 00:00:07]} a5 {[%clk 00:21:42]} {[%emt 00:10:35]} 19.
Rac1 {[%clk 00:19:46]} {[%emt 00:00:21]} Bd7 {[%clk 00:20:48]} {[%emt
00:01:23]} 20. Rxc8+ {[%clk 00:14:28]} {[%emt 00:05:48]} Rxc8 {[%clk 00:20:41]}
{[%emt 00:00:38]} 21. Rxc8+ {[%clk 00:14:56]} {[%emt 00:00:02]} Bxc8 {[%clk
00:21:07]} {[%emt 00:00:04]} 22. Bb5 {[%clk 00:15:10]} {[%emt 00:00:16]} Kf8
{[%clk 00:20:52]} {[%emt 00:00:45]} 23. Kf1 {[%clk 00:13:29]} {[%emt 00:02:11]}
Ke7 {[%clk 00:20:25]} {[%emt 00:00:57]} 24. Bd3 {[%clk 00:12:49]} {[%emt
00:01:10]} h5 {[%clk 00:18:59]} {[%emt 00:01:57]} 25. Bxh7 {[%clk 00:10:33]}
{[%emt 00:02:44]} Bh6 {[%clk 00:19:18]} {[%emt 00:00:12]} 26. Ke2 {[%clk
00:07:35]} {[%emt 00:03:28]} Bc1 {[%clk 00:19:29]} {[%emt 00:00:19]} 27. Kd1
{[%clk 00:06:21]} {[%emt 00:01:44]} Bxb2 {[%clk 00:19:45]} {[%emt 00:00:13]} 28.
Kc2 {[%clk 00:06:49]} {[%emt 00:00:02]} Ba1 {[%clk 00:14:22]} {[%emt 00:05:52]}
29. Kb1 {[%clk 00:05:25]} {[%emt 00:01:56]} Bc3 {[%clk 00:14:34]} {[%emt
00:00:14]} 30. Kc2 {[%clk 00:04:53]} {[%emt 00:01:05]} Ba1 {[%clk 00:13:43]}
{[%emt 00:01:19]} 31. Kb1 {[%clk 00:05:19]} {[%emt 00:00:07]} Bc3 {[%clk
00:14:01]} {[%emt 00:00:11]} 32. Kc2 {[%clk 00:05:42]} {[%emt 00:00:07]} Ba1
{[%clk 00:13:31]} {[%emt 00:01:01]} 1/2-1/2

[Event "IIe Tournoi de GMI du C'Chartres Echecs"]
[Site "Chartres, France"]
[Date "2021.05.17"]
[Round "1.4"]
[White "Stephan, Victor"]
[Black "David, Alberto"]
[Result "0-1"]
[TimeControl "5400+30"]
[WhiteTitle "IM"]
[BlackTitle "GM"]
[WhiteElo "2430"]
[BlackElo "2517"]

1. d4 {[%clk 01:30:55]} {[%emt 00:00:03]} Nf6 {[%clk 01:30:43]} {[%emt
00:00:18]} 2. c4 {[%clk 01:31:14]} {[%emt 00:00:12]} e6 {[%clk 01:30:58]}
{[%emt 00:00:14]} 3. Nc3 {[%clk 01:31:22]} {[%emt 00:00:22]} Bb4 {[%clk
01:31:14]} {[%emt 00:00:14]} 4. Qc2 {[%clk 01:31:26]} {[%emt 00:00:25]} O-O
{[%clk 01:31:08]} {[%emt 00:00:36]} 5. Nf3 {[%clk 01:30:33]} {[%emt 00:01:22]}
d6 {[%clk 01:30:40]} {[%emt 00:00:58]} 6. g3 {[%clk 01:27:33]} {[%emt
00:03:30]} e5 {[%clk 01:29:54]} {[%emt 00:01:17]} 7. Bg2 {[%clk 01:23:18]}
{[%emt 00:04:45]} Bxc3+ {[%clk 01:26:47]} {[%emt 00:03:38]} 8. Qxc3 {[%clk
01:20:27]} {[%emt 00:03:20]} e4 {[%clk 01:27:04]} {[%emt 00:00:14]} 9. Nh4
{[%clk 01:10:55]} {[%emt 00:10:01]} h6 {[%clk 01:18:02]} {[%emt 00:09:32]} 10.
f4 {[%clk 01:08:24]} {[%emt 00:03:01]} exf3 {[%clk 01:05:37]} {[%emt 00:12:56]}
11. Bxf3 {[%clk 01:02:11]} {[%emt 00:06:43]} Re8 {[%clk 01:01:59]} {[%emt
00:04:08]} 12. O-O {[%clk 00:58:35]} {[%emt 00:04:04]} Nc6 {[%clk 01:01:28]}
{[%emt 00:01:02]} 13. b4 {[%clk 00:53:51]} {[%emt 00:05:14]} Ne4 {[%clk
00:56:28]} {[%emt 00:05:30]} 14. Qd3 {[%clk 00:50:53]} {[%emt 00:03:28]} d5
{[%clk 00:53:24]} {[%emt 00:03:34]} 15. Bh5 {[%clk 00:43:34]} {[%emt 00:07:48]}
Be6 {[%clk 00:46:22]} {[%emt 00:07:32]} 16. b5 {[%clk 00:42:03]} {[%emt
00:02:01]} Na5 {[%clk 00:45:39]} {[%emt 00:01:13]} 17. c5 {[%clk 00:35:34]}
{[%emt 00:06:59]} Nc4 {[%clk 00:40:21]} {[%emt 00:05:48]} 18. Ng2 {[%clk
00:31:12]} {[%emt 00:04:51]} g6 {[%clk 00:34:16]} {[%emt 00:06:36]} 19. Bf3
{[%clk 00:28:36]} {[%emt 00:03:05]} Bf5 {[%clk 00:34:05]} {[%emt 00:00:42]} 20.
Qd1 {[%clk 00:24:53]} {[%emt 00:04:12]} g5 {[%clk 00:22:13]} {[%emt 00:12:23]}
21. Bh5 {[%clk 00:23:09]} {[%emt 00:02:14]} Bg6 {[%clk 00:20:41]} {[%emt
00:02:03]} 22. Bxg6 {[%clk 00:21:05]} {[%emt 00:02:34]} fxg6 {[%clk 00:21:06]}
{[%emt 00:00:05]} 23. Qd3 {[%clk 00:21:29]} {[%emt 00:00:06]} Rf8 {[%clk
00:11:54]} {[%emt 00:09:43]} 24. Rf3 {[%clk 00:20:40]} {[%emt 00:01:18]} a6
{[%clk 00:12:08]} {[%emt 00:00:17]} 25. Rb1 {[%clk 00:18:33]} {[%emt 00:02:36]}
axb5 {[%clk 00:12:11]} {[%emt 00:00:37]} 26. Rxb5 {[%clk 00:18:49]} {[%emt
00:00:04]} Rxa2 {[%clk 00:11:44]} {[%emt 00:00:57]} 27. Rxb7 {[%clk 00:18:20]}
{[%emt 00:00:59]} Ncd2 {[%clk 00:09:18]} {[%emt 00:02:55]} 28. Bxd2 {[%clk
00:16:43]} {[%emt 00:02:07]} Rxd2 {[%clk 00:09:26]} {[%emt 00:00:23]} 29. Qb3
{[%clk 00:15:59]} {[%emt 00:01:14]} Re8 {[%clk 00:05:21]} {[%emt 00:04:35]} 30.
Ne3 {[%clk 00:13:11]} {[%emt 00:03:17]} Rxd4 {[%clk 00:05:21]} {[%emt
00:00:30]} 31. Ng4 {[%clk 00:10:06]} {[%emt 00:03:34]} h5 {[%clk 00:03:11]}
{[%emt 00:02:41]} 32. Nh6+ {[%clk 00:09:01]} {[%emt 00:01:35]} Kh7 {[%clk
00:03:34]} {[%emt 00:00:07]} 33. Rf7+ {[%clk 00:07:19]} {[%emt 00:02:12]} Kxh6
{[%clk 00:04:00]} {[%emt 00:00:04]} 34. Rbxc7 {[%clk 00:07:45]} {[%emt
00:00:04]} Nf6 {[%clk 00:02:06]} {[%emt 00:02:23]} 35. Qf3 {[%clk 00:05:53]}
{[%emt 00:02:22]} Rd1+ {[%clk 00:02:05]} {[%emt 00:00:32]} 36. Kf2 {[%clk
00:03:49]} {[%emt 00:02:33]} Rd2 {[%clk 00:01:55]} {[%emt 00:00:41]} 37. Qxf6
{[%clk 00:03:45]} {[%emt 00:00:34]} Rdxe2+ {[%clk 00:01:58]} {[%emt 00:00:27]}
38. Kg1 {[%clk 00:03:17]} {[%emt 00:00:58]} Re1+ {[%clk 00:02:22]} {[%emt
00:00:05]} 39. Kg2 {[%clk 00:03:44]} {[%emt 00:00:03]} R8e2+ {[%clk 00:02:48]}
{[%emt 00:00:05]} 40. Qf2 {[%clk 00:03:52]} {[%emt 00:00:22]} g4 {[%clk
00:01:57]} {[%emt 00:01:20]} 41. Rcd7 {[%clk 00:03:23]} {[%emt 00:00:58]} Rxf2+
{[%clk 00:01:26]} {[%emt 00:01:01]} 42. Kxf2 {[%clk 00:03:50]} {[%emt
00:00:03]} Qe8 {[%clk 00:01:48]} {[%emt 00:00:08]} 43. Rh7+ {[%clk 00:03:40]}
{[%emt 00:00:40]} Kg5 {[%clk 00:02:13]} {[%emt 00:00:05]} 44. Rxd5+ {[%clk
00:04:07]} {[%emt 00:00:03]} Re5 {[%clk 00:01:49]} {[%emt 00:00:54]} 0-1